Cogmind - Beta 12 @@@ ROGUE MODE // 2023.05.26 @ 03:29:13 Player: Scrof Result: Destroyed by X-67 Chaingunner with Minigun Performance ------------- Evolutions (3) 1500 Regions Visited (8) 1600 Robots Destroyed (22) 110 Value Destroyed (440) 440 Prototype IDs (5) 100 Alien Tech Used (0) 0 Bonus (1337) 1337 TOTAL SCORE: 5087 Bonus ------- Pacifist 200 High Alert Combat Kills 56 Follower Combat Kills 281 Entered DSFs 500 Aligned with FarCom 300 Cogmind --------- Core Integrity 0/700 Matter 41/300 Energy 99/100 System Corruption 0% Temperature Cool (0) Movement Core (50) Location -7/DSF Parts ------- > --- POWER (1) -------- (None) > --- PROPULSION (5) --- (None) > --- UTILITY (5) ------ (None) > --- WEAPON (2) ------- (None) > --- INVENTORY (5) ---- Medium Storage Unit Advanced Visual Processing Unit Advanced Targeting Computer Reaction Control System Blade Saw Peak State ------------ > --- POWER ------------ Light Nuclear Core > --- PROPULSION ------- VTOL Module Cesium-ion Thruster Cesium-ion Thruster Cesium-ion Thruster > --- UTILITY ---------- Medium Storage Unit Weight Redist. System Advanced Visual Processing Unit Hacking Suite > --- WEAPON ----------- Mini Grenade Launcher Field Lobotomy Kit > --- INVENTORY -------- Improved Ion Engine Armored Wheel Armored Wheel Flight Unit VTOL Module Large Storage Unit Advanced Visual Processing Unit Signal Interpreter Reaction Control System Improved Datajack [Rating: 37] Favorites ----------- Power Light Ion Engine Engine Light Ion Engine Power Core Light Nuclear Core Propulsion Armored Wheel Leg Aluminum Leg Wheel Armored Wheel Hover Unit Improved Airjet Flight Unit VTOL Module Utility Medium Storage Unit Device Weight Redist. System Storage Medium Storage Unit Processor Advanced Visual Processing Unit Hackware Hacking Suite Protection Light Armor Plating Weapon Mini Grenade Launcher Energy Gun EM Pulse Gun Ballistic Gun Assault Rifle Ballistic Cannon Advanced Assault Cannon Launcher Mini Grenade Launcher Special Weapon Field Lobotomy Kit Slashing Weapon Blade Saw Build | -11 -10 -9 -9 -9 -8 -8 -7 -7 ------- Run | Jun Mat Mat Min Exi Min Mat Fac DSF Slots Evolved 6 | . . 2 . . . 2 2 . Power . | . . . . . . . . . Propulsion 3 | . . 2 . . . . 1 . Utility 3 | . . . . . . 2 1 . Weapon . | . . . . . . . . . Parts Attached 75 | 6 8 4 8 5 7 20 10 7 Power 4 | 1 . . . 1 . 1 . 1 Engine 3 | 1 . . . 1 . . . 1 Core 1 | . . . . . . 1 . . Reactor . | . . . . . . . . . Propulsion 31 | 2 2 2 6 . 4 10 5 . Treads . | . . . . . . . . . Leg 3 | 2 . . 1 . . . . . Wheel 7 | . . . 4 . . 2 1 . Hover 1 | . . . . . . . 1 . Flight 20 | . 2 2 1 . 4 8 3 . Utility 23 | 1 4 2 1 3 2 6 2 2 Device 7 | . 1 1 . . 1 2 1 1 Storage 7 | 1 1 1 . 2 1 . . 1 Processor 3 | . . . . . . 2 1 . Hackware 1 | . . . . . . 1 . . Protection 5 | . 2 . 1 1 . 1 . . Artifact . | . . . . . . . . . Weapon 17 | 2 2 . 1 1 1 3 3 4 Energy Gun 5 | 1 2 . . . . . 1 1 Energy Cannon . | . . . . . . . . . Ballistic Gun 1 | 1 . . . . . . . . Ballistic Cannon 1 | . . . . . . . . 1 Launcher 5 | . . . 1 . . 1 1 2 Special Weapon 3 | . . . . 1 1 1 . . Impact Weapon . | . . . . . . . . . Slashing Weapon 2 | . . . . . . 1 1 . Piercing Weapon . | . . . . . . . . . Special Melee Weapon . | . . . . . . . . . Unidentified Prototypes 5 | . . . . 2 . 1 2 . Parts Lost 24 | . . . 5 . . 8 . 11 Power 3 | . . . 1 . . . . 2 Propulsion 14 | . . . 3 . . 6 . 5 Utility 2 | . . . 1 . . 1 . . Weapon 5 | . . . . . . 1 . 4 Highest Loss Streak 11 | . . . 5 . . 6 . 11 To Critical Strikes . | . . . . . . . . . Average Slot Usage (%) 80 | . 85 75 72 83 89 83 68 55 Engine 6 | . 14 11 . 8 11 3 . . Core 1 | . . . . . . 5 7 1 Leg 7 | . 21 . . 11 4 . . . Wheel 14 | . . . 38 33 12 2 7 4 Flight 13 | . 6 44 4 . 27 27 22 8 Device 2 | . . 9 . . 6 6 . 4 Storage 10 | . 16 11 11 11 11 9 7 4 Processor 3 | . . . . . . 8 7 10 Hackware 2 | . . . . . . 6 7 4 Protection 4 | . 4 . 9 7 4 . . . Energy Gun 2 | . 12 . . . . . . . Ballistic Gun 1 | . 8 . . . . . . . Launcher 6 | . . . 8 11 11 9 2 3 Slashing Weapon 1 | . . . . . . 4 2 2 Naked Turns 27 | . . . . . . . . 27 Heaviest Build 36 | 12 21 15 15 27 27 24 24 36 Greatest Support 48 | 20 20 16 48 36 36 25 12 12 Greatest Overweight (x) 3 | 3 1 . . . . 1 1 2 Average Overweight (x) . | . . . . . . . 1 . Largest Inventory Capacity 15 | 8 8 10 10 15 15 10 10 15 Average Capacity 9 | 7 8 9 10 10 12 10 10 11 Most Carried 15 | 7 8 10 10 10 15 10 9 8 Average Carried 8 | 4 7 8 6 9 11 9 7 5 Final Capacity 15 | 8 8 10 10 15 10 10 10 5 Final Carried 10 | 6 8 10 6 10 10 9 4 5 Class Distribution -------------------- 64% | Mutant 19% | Sprinter 8% | Scavenger-Sprinter 4% | Scavenger-Mutant Dominant Class ---------------- Mutant | -10/Materials Sprinter | -9/Materials Mutant | -9/Mines Mutant | -9/Exiles Sprinter | -8/Mines Scavenger-Sprinter | -8/Materials Scavenger-Mutant | -7/Factory Mutant | -7/DSF Resources | -11 -10 -9 -9 -9 -8 -8 -7 -7 ----------- Run | Jun Mat Mat Min Exi Min Mat Fac DSF Matter Collected 949 | 216 80 . 48 100 . 471 . 34 Remotely . | . . . . . . . . . Salvage Created 513 | . . . 115 . 11 375 . 12 Parts 38 | . . . 2 . 8 28 . . Haulers Intercepted . | . . . . . . . . . Recyclers Shooed . | . . . . . . . . . Parts Field Recycled . | . . . . . . . . . Retrieved Matter . | . . . . . . . . . Parts Self-Destructed . | . . . . . . . . . Prevented . | . . . . . . . . . Kills | -11 -10 -9 -9 -9 -8 -8 -7 -7 ------- Run | Jun Mat Mat Min Exi Min Mat Fac DSF Combat Hostiles Destroyed 35 | . . . 18 . 4 13 . . AOE 35 | . . . 18 . 4 13 . . Classes Destroyed 7 | . . . 3 . 1 3 . . Builder 2 | . . . . . . 2 . . Watcher 1 | . . . . . . 1 . . Swarmer 13 | . . . . . 4 9 . . Grunt 3 | . . . 1 . . 2 . . Brawler 2 | . . . 1 . . 1 . . Sentry 1 | . . . . . . 1 . . Assembled 16 | . . . 16 . . . . . Best Kill Streak 16 | . . . 16 . 4 10 . . Combat Bots Only 16 | . . . 16 . 4 9 . . Max Kills in Single Turn 4 | . . . 4 . 2 2 . . Gunslinging . | . . . . . . . . . Exploded 4 | . . . 4 . 2 2 . . Melee . | . . . . . . . . . Uniques/NPCs Destroyed . | . . . . . . . . . Combat | -11 -10 -9 -9 -9 -8 -8 -7 -7 -------- Run | Jun Mat Mat Min Exi Min Mat Fac DSF Damage Taken 2766 | . . 90 642 . 58 573 . 1403 Core 1009 | . . 38 176 . 9 80 . 706 Absorbed by Shields 47 | . . . . . . . . 47 Core Remaining (%) 82 | 100 100 . . . 44 85 . . Volleys Fired 55 | . 2 . 13 . 4 30 . 6 Largest 2 | . 2 . 1 . 1 1 . 1 Hottest 130 | . 130 . 30 . 30 36 . 48 Shots Fired 56 | . 4 . 13 . 4 29 . 6 Gun 4 | . 4 . . . . . . . Cannon 5 | . . . . . . . . 5 Launcher 42 | . . . 13 . 3 25 . 1 Special 5 | . . . . . 1 4 . . Kinetic 6 | . 1 . . . . . . 5 Thermal 2 | . 2 . . . . . . . Explosive 22 | . . . 13 . 3 5 . 1 Electromagnetic 21 | . 1 . . . . 20 . . Robot Hit Streak 7 | . 3 . 3 . 6 7 . 4 Robot Miss Streak 3 | . 1 . 2 . . 3 . 1 Penetration Max . | . . . . . . . . . Secondary Targets . | . . . . . . . . . Shots Hit Robots 30 | . 3 . 4 . 3 16 . 4 Core Hits 56 | . . . 26 . 5 23 . 2 Critical Kills . | . . . . . . . . . Critical Parts Destroyed . | . . . . . . . . . Critical Strikes . | . . . . . . . . . Melee Attacks 4 | . . . . . . 4 . . Impact . | . . . . . . . . . Slashing 4 | . . . . . . 4 . . Piercing . | . . . . . . . . . Sneak Attacks . | . . . . . . . . . Combat Hostiles . | . . . . . . . . . Follow-up Attacks . | . . . . . . . . . Damage Inflicted 2519 | . 42 . 1123 . 291 862 . 201 Guns 42 | . 42 . . . . . . . Cannons 90 | . . . . . . . . 90 Explosions 2387 | . . . 1123 . 291 862 . 111 Melee . | . . . . . . . . . Ramming . | . . . . . . . . . Kinetic 105 | . 15 . . . . . . 90 Thermal 55 | . 27 . . . . 28 . . Explosive 1892 | . . . 1123 . 291 367 . 111 Electromagnetic 467 | . . . . . . 467 . . Impact . | . . . . . . . . . Slashing . | . . . . . . . . . Piercing . | . . . . . . . . . Highest Corruption 1 | . . . 1 1 1 1 . . Average Corruption 1 | . . . 1 1 1 1 . . Corruption Purged . | . . . . . . . . . Corruption Blocked . | . . . . . . . . . Effects 8 | . . . . 5 1 2 . . Message Errors 2 | . . . . 1 . 1 . . Matter Fused 2 | . . . . 2 . . . . Energy Discharges 2 | . . . . 2 . . . . Data Loss (minor) 1 | . . . . . 1 . . . Weapon Failures 1 | . . . . . . 1 . . Overload Shots . | . . . . . . . . . Overflow Damage 84 | . . . 28 . 23 33 . . Projectiles . | . . . . . . . . . Explosions 84 | . . . 28 . 23 33 . . Melee . | . . . . . . . . . Knockbacks 1 | . . . . . . . . 1 Impact . | . . . . . . . . . Kinetic 1 | . . . . . . . . 1 Secondary . | . . . . . . . . . Self-Inflicted Damage 125 | . . . 61 . . 64 . . Shots 8 | . . . 3 . . 5 . . Rammed . | . . . . . . . . . Targets Rammed . | . . . . . . . . . Kicked . | . . . . . . . . . Crushed . | . . . . . . . . . Highest Temperature 310 | . 78 6 50 . . 40 310 . Average Temperature 56 | . 44 3 39 . . 15 161 . Received Heat Transfer 525 | . . 45 120 . . 189 . 171 Siege Activations . | . . . . . . . . . Robots Corrupted . | . . . . . . . . . Combat Hostiles . | . . . . . . . . . Parts Fried 2 | . . . . . . 2 . . Impact Corruptions . | . . . . . . . . . Robots Melted . | . . . . . . . . . Combat Hostiles . | . . . . . . . . . Parts Melted . | . . . . . . . . . Heat Transferred 124 | . 74 . . . . 50 . . Parts Sabotaged . | . . . . . . . . . Parts Stolen . | . . . . . . . . . Parts Stripped . | . . . . . . . . . Power Chain Reactions 2 | . . . . . . 2 . . Missiles Intercepted . | . . . . . . . . . Alert | -11 -10 -9 -9 -9 -8 -8 -7 -7 ------- Run | Jun Mat Mat Min Exi Min Mat Fac DSF Peak Influence 662 | . 56 98 93 . 117 662 255 178 Initial 255 | . . 23 37 . . 45 255 178 Average 184 | . 17 52 42 . 100 404 255 149 Maximum Alert Level 2 | . . . . . . 2 1 . Low Security (%) 64 | 100 100 100 100 . 100 15 . 100 Level 1 14 | . . . . . . 24 100 . Level 2 20 | . . . . . . 60 . . Level 3 . | . . . . . . . . . Level 4 . | . . . . . . . . . Level 5 . | . . . . . . . . . High Security . | . . . . . . . . . Max Security . | . . . . . . . . . Squads Dispatched 12 | . . . . . . 10 . 2 Investigation 3 | . . . . . . 3 . . Extermination . | . . . . . . . . . Reinforcement 7 | . . . . . . 5 . 2 Assault . | . . . . . . . . . Garrison 2 | . . . . . . 2 . . Intercept . | . . . . . . . . . Searches Triggered . | . . . . . . . . . Construction Impeded 2 | . . . . . . 2 . . Haulers Reinforced . | . . . . . . . . . Active Scanning Responses . | . . . . . . . . . Cargo Convoy Interrupts . | . . . . . . . . . Stealth | -11 -10 -9 -9 -9 -8 -8 -7 -7 --------- Run | Jun Mat Mat Min Exi Min Mat Fac DSF Distress Signals 6 | . . 1 1 . . 4 . . Communications Jammed . | . . . . . . . . . Distress Signals . | . . . . . . . . . Times Spotted 90 | . 2 12 23 . 3 41 . 9 Peak Tracking Total 20 | . 1 11 20 . 2 8 . 7 Tactical Retreats 9 | . . 1 2 . . 5 . 1 Traps | -11 -10 -9 -9 -9 -8 -8 -7 -7 ------- Run | Jun Mat Mat Min Exi Min Mat Fac DSF Traps Triggered 2 | . . . . . . . . 2 Indirectly . | . . . . . . . . . Trap Hack Attempts . | . . . . . . . . . Triggered . | . . . . . . . . . Disarmed . | . . . . . . . . . Reprogrammed . | . . . . . . . . . Reused . | . . . . . . . . . Traps Extracted . | . . . . . . . . . Installed . | . . . . . . . . . Triggered . | . . . . . . . . . Machines | -11 -10 -9 -9 -9 -8 -8 -7 -7 ---------- Run | Jun Mat Mat Min Exi Min Mat Fac DSF Machines Disabled 3 | . . . . . . 2 . 1 Max in Single Turn 1 | . . . . . . . . 1 Machines Repaired . | . . . . . . . . . Machines Sabotaged . | . . . . . . . . . Overloaded Fab Kills . | . . . . . . . . . Hacking | -11 -10 -9 -9 -9 -8 -8 -7 -7 --------- Run | Jun Mat Mat Min Exi Min Mat Fac DSF Machines Accessed 18 | . 6 1 . 4 . 6 1 . Terminals 14 | . 6 1 . . . 6 1 . Fabricators . | . . . . . . . . . Repair Stations . | . . . . . . . . . Recycling Units . | . . . . . . . . . Scanalyzers . | . . . . . . . . . Garrison Access . | . . . . . . . . . Total Hacks 99 | . 19 2 . 49 . 28 1 . Successful 75 | . 8 . . 49 . 17 1 . Failed 24 | . 11 2 . . . 11 . . Catastrophic 2 | . . 1 . . . 1 . . Database Lockouts . | . . . . . . . . . Manual 40 | . 12 2 . 4 . 22 . . Terminals 50 | . 19 2 . . . 28 1 . Fabricators . | . . . . . . . . . Repair Stations . | . . . . . . . . . Recycling Units . | . . . . . . . . . Scanalyzers . | . . . . . . . . . Garrison Access . | . . . . . . . . . Terminal Hacks 59 | . 2 . . 49 . 7 1 . Record 53 | . . . . 49 . 4 . . Open DSF 1 | . . . . . . . 1 . Terminal Index 1 | . 1 . . . . . . . Alert Level 1 | . . . . . . 1 . . Unreport Threat 2 | . . . . . . 2 . . Locate Traps 1 | . 1 . . . . . . . Fabricator Hacks . | . . . . . . . . . Repair Station Hacks . | . . . . . . . . . Recycling Unit Hacks . | . . . . . . . . . Scanalyzer . | . . . . . . . . . Garrison Access Hacks . | . . . . . . . . . Unauthorized Hacks 16 | . 6 . . . . 10 . . Terminals 16 | . 6 . . . . 10 . . Assimilate 6 | . 2 . . . . 4 . . Botnet 10 | . 4 . . . . 6 . . Fabricators . | . . . . . . . . . Repair Stations . | . . . . . . . . . Recycling Units . | . . . . . . . . . Scanalyzers . | . . . . . . . . . Garrison Access . | . . . . . . . . . Data Cores Recovered 1 | . . . . . . 1 . . Used . | . . . . . . . . . Hacking Detections 12 | . 4 1 . . . 6 1 . Full Trace Events 5 | . 1 . . . . 4 . . Feedback Events . | . . . . . . . . . Feedback Blocked . | . . . . . . . . . Robot Schematics Acquired . | . . . . . . . . . Robots Built . | . . . . . . . . . Authchips . | . . . . . . . . . Time . | . . . . . . . . . Total Robot Build Rating . | . . . . . . . . . Part Schematics Acquired . | . . . . . . . . . Parts Built . | . . . . . . . . . Authchips . | . . . . . . . . . Time . | . . . . . . . . . Total Part Build Rating . | . . . . . . . . . Parts Repaired . | . . . . . . . . . Time . | . . . . . . . . . Parts Recycled . | . . . . . . . . . Recycled Matter . | . . . . . . . . . Retrieved Matter . | . . . . . . . . . Retrieved Components . | . . . . . . . . . Parts Scanalyzed . | . . . . . . . . . Part Schematics Acquired . | . . . . . . . . . Parts Damaged . | . . . . . . . . . Bothacking | -11 -10 -9 -9 -9 -8 -8 -7 -7 ------------ Run | Jun Mat Mat Min Exi Min Mat Fac DSF Used RIF Installer . | . . . . . . . . . Robots Hacked . | . . . . . . . . . Non-combat . | . . . . . . . . . Combat . | . . . . . . . . . Robot Hacks Applied . | . . . . . . . . . Relay Couplers Released . | . . . . . . . . . Fabnet Peak Effective % . | . . . . . . . . . Robots Rewired . | . . . . . . . . . Allies Hacked . | . . . . . . . . . Hacks Repelled . | . . . . . . . . . Allies | -11 -10 -9 -9 -9 -8 -8 -7 -7 -------- Run | Jun Mat Mat Min Exi Min Mat Fac DSF Total Allies 4 | . . . . . 1 3 . . Largest Group 2 | . . . . . 1 2 . . Highest-Rated Group 40 | . . . . . 21 40 . . Highest-Rated Ally 25 | . . . . . 21 25 . . Total Orders . | . . . . . . . . . Ally Attacks 58 | . . . . . . 58 . . Total Damage 2796 | . . . . . . 2796 . . Kills 18 | . . . . . . 18 . . Allies Corrupted . | . . . . . . . . . Allies Melted . | . . . . . . . . . Turrets Deployed 3 | . . . . . . 3 . . Field Lobotomies 4 | . . . . . 1 3 . . Intel | -11 -10 -9 -9 -9 -8 -8 -7 -7 ------- Run | Jun Mat Mat Min Exi Min Mat Fac DSF Robot Analysis Total . | . . . . . . . . . Derelict Logs Recovered . | . . . . . . . . . Drone Launches . | . . . . . . . . . Drone Recoveries . | . . . . . . . . . Exploration | -11 -10 -9 -9 -9 -8 -8 -7 -7 ------------- Run | Jun Mat Mat Min Exi Min Mat Fac DSF Turns Passed 1901 | 70 335 87 154 519 74 478 88 96 Spaces Moved 2217 | 45 373 243 147 551 98 602 71 87 Core 67 | 13 . . . . . . . 54 Treads . | . . . . . . . . . Legs 195 | 32 163 . . . . . . . Wheels 895 | . . . 122 551 15 103 71 33 Hover . | . . . . . . . . . Flight 1060 | . 210 243 25 . 83 499 . . Fastest Speed 26 | 50 32 26 26 90 28 26 105 50 Average Speed 64 | 122 74 26 79 90 37 39 105 74 Slowest Speed 200 | 200 190 26 90 90 90 105 105 120 Overloaded Moves . | . . . . . . . . . Propulsion Burnouts . | . . . . . . . . . Robots Hopped 38 | . 3 4 9 . . 22 . . Cave-ins Triggered . | . . . . . . . . . Time Travels 1 | . . . . 1 . . . . Exploration Rate (%) 42 | 3 48 29 42 92 41 57 2 67 Regions Visited 8 Branch Regions 3 Pre-discovered Areas 1 | . . . . 1 . . . . Known Exits Taken 1 | . . . . . . . 1 . Unknown Exits Taken 7 | 1 1 1 1 1 1 1 . . Scrap Searched 1 | . . . 1 . . . . . Spaces Dug . | . . . . . . . . . Terrain Destroyed 124 | . . . 56 . 15 44 . 9 Melee . | . . . . . . . . . Projectile . | . . . . . . . . . AOE 124 | . . . 56 . 15 44 . 9 Terrain Rammed . | . . . . . . . . . Walls Destroyed . | . . . . . . . . . Machines Disabled . | . . . . . . . . . Actions | -11 -10 -9 -9 -9 -8 -8 -7 -7 --------- Run | Jun Mat Mat Min Exi Min Mat Fac DSF Total 2594 | 57 426 266 160 579 129 781 86 110 Wait 150 | . 18 4 1 . 11 115 . 1 Move 2141 | 44 366 234 131 550 97 562 70 87 Hop 30 | . 3 4 6 . . 17 . . Pick Up 67 | 7 10 12 1 12 5 15 1 4 Fast Attach 19 | 5 6 . . 1 . 4 1 2 Attach 30 | 1 . 4 5 2 1 6 9 2 Detach 12 | . 3 1 . 2 1 1 4 . Swap 26 | . 2 . 3 2 6 10 . 3 Drop 55 | . 16 7 . 10 4 17 1 . Fire 55 | . 2 . 13 . 4 30 . 6 Melee 4 | . . . . . . 4 . . Ram . | . . . . . . . . . Kick . | . . . . . . . . . Crush . | . . . . . . . . . Escape Stasis 4 | . . . . . . . . 4 Rewire 1 | . . . . . . . . 1 Trap . | . . . . . . . . . Miscellaneous . | . . . . . . . . . Route ------- -11/Junkyard -10/Materials (discovered 2 exits: *Mat / [*Min]) -9/Materials -9/Mines -9/Exiles (discovered 2 exits: [*Min x2]) -8/Mines -8/Materials -7/Factory -7/DSF (discovered 1 exit: [*Gar]) History --------- Turn | Location | Event 31 | -11/Junkyard | Discovered new exit (range 15) 71 | -11/Junkyard | Entered Materials 143 | -10/Materials | Discovered new exit (range 7) 308 | -10/Materials | Build established: Mutant 390 | -10/Materials | Discovered new exit (range 13) 406 | -10/Materials | Entered another Materials area 406 | -9/Materials | Evolved 2 slots: Propulsion x2 489 | -9/Materials | Discovered new exit (range 9) 493 | -9/Materials | Entered Mines 494 | -9/Mines | Assembled infested the area 494 | -9/Mines | Met a Derelict bent on vengeance 533 | -9/Mines | Lost 5 parts (1p3n1u) 537 | -9/Mines | Core integrity fell below 50% 565 | -9/Mines | Destroyed 16 combat bots 642 | -9/Mines | Deemed a non-threat by the Exiles lab entrance 643 | -9/Mines | Discovered new exit (range 5) 647 | -9/Mines | Entered Exiles 680 | -9/Exiles | Discovered new exit (range 14) 694 | -9/Exiles | Met 8R-AWN 711 | -9/Exiles | Met EX-HEX 774 | -9/Exiles | Met EX-DEC 801 | -9/Exiles | Met EX-BIN 815 | -9/Exiles | Aligned with FarCom system 816 | -9/Exiles | Given EX-Vault access code 860 | -9/Exiles | Opened EX-Vault 864 | -9/Exiles | Found Prototype Device 864 | -9/Exiles | Identified Chronowheel 864 | -9/Exiles | Activated Chronowheel 864 | -9/Exiles | Spacetime reconverged on an earlier point 865 | -9/Exiles | Found Prototype Special Weapon 865 | -9/Exiles | Identified Field Lobotomy Kit 873 | -9/Exiles | Found Deploy-a-Sentry 875 | -9/Exiles | Found Deploy-a-Sentry 877 | -9/Exiles | Found Deploy-a-Sentry 916 | -9/Exiles | Warned to stay clear of 0b10 Research branches 983 | -9/Exiles | Visited The Gauntlet 1096 | -9/Exiles | Learned location of Zion (-7) 1158 | -9/Exiles | Discovered new exit (range 11) 1166 | -9/Exiles | Stole two prototypes: Field Lobotomy Kit, Deploy-a-Sentry 1166 | -9/Exiles | Entered Mines 1233 | -8/Mines | Discovered new exit (range 13) 1237 | -8/Mines | Assimilated H-55 Commando with FLK Orb 1240 | -8/Mines | Entered Materials 1240 | -8/Materials | Accompanied by 1 ally 1240 | -8/Materials | Evolved 2 slots: Utility x2 1296 | -8/Materials | DAS Turret deployed 1303 | -8/Materials | DAS Turret deployed 1304 | -8/Materials | DAS Turret deployed 1450 | -8/Materials | Assimilated Y-45 Defender with FLK Orb 1486 | -8/Materials | Assimilated C-17 Slicer with FLK Orb 1489 | -8/Materials | Assimilated C-17 Slicer with FLK Orb 1590 | -8/Materials | Garrison activated, responded to threat 1661 | -8/Materials | Lost 6 parts (4n1u1w) 1671 | -8/Materials | Destroyed 9 combat bots 1704 | -8/Materials | Discovered new exit (range 7) 1718 | -8/Materials | Entered Factory 1718 | -7/Factory | Evolved 2 slots: Propulsion x1, Utility x1 1720 | -7/Factory | FarCom data flow suspended 1804 | -7/Factory | Identified exit to DSF 1806 | -7/Factory | Entered DSF 1821 | -7/DSF | Discovered new exit (range 19) 1842 | -7/DSF | Additional patrols routed to DSF 1875 | -7/DSF | Released all parts (6) 1879 | -7/DSF | Core integrity fell below 50% 1884 | -7/DSF | Core integrity fell below 20% 1902 | -7/DSF | Destroyed by X-67 Chaingunner with Minigun Last Messages --------------- 01874_ Lightning Gun destroyed. 01875_ Arm. Wheel destroyed. 01875_ Released Kinecellerator. 01875_ Released Lrg. Storage Unit. 01875_ Released Signal Interpreter. 01875_ Released Adv. Visual Processing Unit. 01875_ Released Hacking Suite. 01875_ Released Adv. Assault Cannon. 01875_ Slug penetrates Wall. 01877_ Penetrated by Slug. 01881_ Acquired 7 matter. 01882_ Acquired 24 matter. 01882_ Penetrated by Slug. 01887_ Slug penetrates Wall. 01901_ Knocked back. 01902_ Triggered Stasis Trap. 01902_ A bubble of rippling energy engulfs the area. 01902_ Field strength at 94. 01902_ Attempting to rewire A-02 Transporter. 01902_ A-02 Transporter is unpowered. Map ----- +----------------------------------------------------+ | | | | | ??????????????????????????????????????????????? | | ??????????????????????????????????????????????? | | ??????????????????????????????????????????????? | | ??????????????????????????????????????????????? | | ??????????????????????????????????????????????? | | ??????????????????????????????????????"#??????? | | ????????????????????????????????????##"####???? | | ????????????????????????????######??#"""""#???? | | ????????????????????????????? #[??#"""""#???? | | ?????????????????????????? ??? ? <""##"#? | | ??????????????????????? ???? ?? """""?? | | ??????????????????????? #?????#[[?? %%"#???? | | ??????????????????????? ##????#[[### ##????? | | ??????????????????????? !!??????# !!! #????? | | ??????????????????????? !???????# [[] [#????? | | ??????????????????????? !???????##[[ [#????? | | ??????????????????????# ###??????# #????? | | ??????????????????????] !!#??????#[[ ##???? | | ??????????????????????] !!#??????#[[ #???? | | ??????????????????????] !!???????#[ ##???? | | ????????????????###???# #?#?######## ^###???? | | ????????????#!??#!!!?## a###***# ## ]##??? | | ???????!! ##!!!#!!!##a ##***# "# ]"#??? | | ???????== @ x "#??? | | ???????== % g % ####? | | ???????== a gx " #? | | ??????? ##!!!#[[[##a ##!!!# ## ]]###?? | | ????????????#!??#[[[?##% H###!!!# ?# ]#???? | | ????????????????###?### ###???###### ###???? | | ????????????????????#!! !!#??????#!! #????? | | ????????????????????#!! !!#??????#!! #????? | | ????????????????????#!! !!#??????#! #????? | | ????????????????????### ###??????### ##????? | | ????????????????????#!! #??????#!! #????? | | ????????????????????#!! #??????#! #????? | | ????????????????????#!! ########## ##????? | | ????????????????????### ###!!!#!!### ###???? | | ????????????????????### ###!!!#!!## ""####? | | ????????????????????# """""#? | | ????????????????????# ""##"#? | | ????????????????????# #!!!#!!##"""""#???? | | ????????????????????# #########"""""#???? | | ????????????????????####"####???????##"####???? | | ????????????????????????##???????????#"#??????? | | ?????????????????????????????????????#""??????? | | ?????????????????????????????????????###??????? | | ??????????????????????????????????????????????? | | ??????????????????????????????????????????????? | +----------------------------------------------------+ Best States ------------- Heat Dissipation 34 Energy Generation 14 Energy Capacity 160 Matter Stores 256 Matter Capacity 400 Sight Range 20 Robot Scan Range 15 Terrain Scan Density 10 ECM Strength 1 Additional Mass Support 6 Armor Coverage 225 Propulsion Shielding 33 Evasion (%) 64 Kinecelleration 30 Offensive Hacking 10 Item Schematics ----------------- None Robot Schematics ------------------ None Fabricated ------------ Nothing Alien Tech Used ----------------- None Achievements -------------- Cya! Dramatic Entrance Exterminator Hunted I Survived The Infestation root@ Challenges ------------ None Game ------ Seed WeightDynamicPod Manual? 0 Play Time 01:14:23 Cumulative 12.2 hours Start 2023.05.26 @ 02:04:48 End 2023.05.26 @ 03:29:13 Sessions 1 Manual Loads 0 Difficulty Rogue Special Mode None Game No. 8 Rogue 8 Adventurer 0 Explorer 0 Win Type - Total 0 Types 0/0/0/0/0/0/0/0/0 Lore% 15 Gallery% 20 Achievement% 20 Wizard Run 0 Options --------- ASCII 0 Keyboard 1 Movement Numpad Keybinds 0 Fullscreen 2 Font 18/TerminusBold Map View 76x50 Tactical HUD 1 Map Filters NONE Filters NONE Steam 1 RUN: e4d7f225-7264-4c46-adbf-2223f434af0d